[Event "Titled Tuesday Blitz May 2 Early 2023"]
[White "Bernadskiy, Vitaliy"]
[Black "Karthik Rajaa"]
[WhiteFideId "14100371"]
[BlackFideId "25035215"]
[WhiteElo "2488"]
[BlackElo "2215"]
[Result "0-1"]
[Round "06"]
[TimeControl "180+2"]
[Date "2023.05.02"]
[WhiteClock "0:00:04"]
[BlackClock "0:01:28"]

1. d4 {[%clk 0:03:00]}  Nf6 {[%clk 0:02:57]} 2. c4 {[%clk 0:03:01]}  g6 {[%clk 0:02:56]} 3. Nc3 {[%clk 0:03:00]}  Bg7 {[%clk 0:02:56]} 4. e4 {[%clk 0:03:00]}  d6 {[%clk 0:02:57]} 5. Be2 {[%clk 0:03:00]}  O-O {[%clk 0:02:57]} 6. Nf3 {[%clk 0:03:00]}  Nbd7 {[%clk 0:02:56]} 7. O-O {[%clk 0:03:00]}  e5 {[%clk 0:02:57]} 8. Be3 {[%clk 0:02:58]}  Qe7 {[%clk 0:02:52]} 9. Qc2 {[%clk 0:02:58]}  c6 {[%clk 0:02:51]} 10. Rad1 {[%clk 0:02:57]}  exd4 {[%clk 0:02:28]} 11. Bxd4 {[%clk 0:02:54]}  b6 {[%clk 0:02:28]} 12. Rfe1 {[%clk 0:02:53]}  Bb7 {[%clk 0:02:28]} 13. Bf1 {[%clk 0:02:50]}  Ne5 {[%clk 0:02:27]} 14. Nd2 {[%clk 0:02:47]}  Nfg4 {[%clk 0:01:58]} 15. h3 {[%clk 0:02:12]}  c5 {[%clk 0:01:56]} 16. hxg4 {[%clk 0:01:58]}  cxd4 {[%clk 0:01:55]} 17. Nd5 {[%clk 0:01:59]}  Qh4 {[%clk 0:01:37]} 18. f3 {[%clk 0:01:26]}  Bh6 {[%clk 0:01:34]} 19. Nb3 {[%clk 0:00:17]}  Bxd5 {[%clk 0:01:33]} 20. Qf2 {[%clk 0:00:04]}  Be3 {[%clk 0:01:29]} 21. Rxe3 {[%clk 0:00:03]}  Qxf2+ {[%clk 0:01:30]} 22. Kxf2 {[%clk 0:00:04]}  dxe3+ {[%clk 0:01:31]} 23. Kxe3 {[%clk 0:00:05]}  Bxc4 {[%clk 0:01:31]} 24. f4 {[%clk 0:00:04]}  Nxg4+ {[%clk 0:01:28]} 0-1


[Site "https://www.chess.com"]

[Event "Titled Tuesday Blitz May 2 Early 2023"]
[White "Asis Gargatagli, Hipolito"]
[Black "Averjanov, Alexey"]
[WhiteFideId "2260735"]
[BlackFideId "14109867"]
[WhiteElo "2557"]
[BlackElo "2399"]
[Result "1-0"]
[Round "06"]
[TimeControl "180+2"]
[Date "2023.05.02"]
[WhiteClock "0:00:52"]
[BlackClock "0:00:01"]

1. e4 {[%clk 0:03:00]}  c6 {[%clk 0:02:57]} 2. d4 {[%clk 0:03:01]}  d5 {[%clk 0:02:57]} 3. f3 {[%clk 0:03:01]}  dxe4 {[%clk 0:02:57]} 4. fxe4 {[%clk 0:03:01]}  e5 {[%clk 0:02:57]} 5. Nf3 {[%clk 0:03:02]}  Bg4 {[%clk 0:02:58]} 6. c3 {[%clk 0:03:02]}  Nd7 {[%clk 0:02:56]} 7. Bd3 {[%clk 0:03:01]}  Bd6 {[%clk 0:02:54]} 8. O-O {[%clk 0:02:58]}  Ngf6 {[%clk 0:02:54]} 9. Na3 {[%clk 0:02:58]}  b5 {[%clk 0:02:53]} 10. Nc2 {[%clk 0:02:58]}  Bh5 {[%clk 0:02:50]} 11. Bg5 {[%clk 0:02:58]}  Qc7 {[%clk 0:02:49]} 12. Ne3 {[%clk 0:02:54]}  Bg6 {[%clk 0:02:46]} 13. Qc2 {[%clk 0:02:43]}  O-O {[%clk 0:02:45]} 14. Nh4 {[%clk 0:02:10]}  Rfe8 {[%clk 0:02:28]} 15. Nhf5 {[%clk 0:02:07]}  exd4 {[%clk 0:02:14]} 16. cxd4 {[%clk 0:02:07]}  Bxh2+ {[%clk 0:02:08]} 17. Kh1 {[%clk 0:02:07]}  Nh5 {[%clk 0:01:54]} 18. e5 {[%clk 0:02:07]}  Bxe5 {[%clk 0:01:28]} 19. dxe5 {[%clk 0:02:03]}  Nxe5 {[%clk 0:01:28]} 20. Bh4 {[%clk 0:01:36]}  Re6 {[%clk 0:00:53]} 21. Be2 {[%clk 0:01:30]}  Rae8 {[%clk 0:00:47]} 22. Bxh5 {[%clk 0:01:09]}  Bxh5 {[%clk 0:00:48]} 23. Nd5 {[%clk 0:01:09]}  Qb8 {[%clk 0:00:38]} 24. Nf4 {[%clk 0:01:09]}  Ng4 {[%clk 0:00:36]} 25. Bg3 {[%clk 0:01:09]}  Re3 {[%clk 0:00:05]} 26. Nxh5 {[%clk 0:01:03]}  Rxg3 {[%clk 0:00:03]} 27. Nhxg3 {[%clk 0:01:01]}  Re6 {[%clk 0:00:01]} 28. Rae1 {[%clk 0:00:52]} 1-0


[Site "https://www.chess.com"]

[Event "Titled Tuesday Blitz May 2 Early 2023"]
[White "Hayrapetyan, Hovik"]
[Black "Rakotomaharo, Fy Antenaina"]
[WhiteFideId "13302639"]
[BlackFideId "13100050"]
[WhiteElo "2348"]
[BlackElo "2427"]
[Result "0-1"]
[Round "06"]
[TimeControl "180+2"]
[Date "2023.05.02"]
[WhiteClock "0:00:03"]
[BlackClock "0:00:11"]

1. d4 {[%clk 0:03:00]}  Nf6 {[%clk 0:02:59]} 2. c4 {[%clk 0:03:00]}  g6 {[%clk 0:02:59]} 3. Nc3 {[%clk 0:03:00]}  d5 {[%clk 0:03:00]} 4. cxd5 {[%clk 0:02:59]}  Nxd5 {[%clk 0:03:01]} 5. e4 {[%clk 0:02:59]}  Nxc3 {[%clk 0:03:01]} 6. bxc3 {[%clk 0:03:00]}  Bg7 {[%clk 0:03:02]} 7. Nf3 {[%clk 0:03:00]}  c5 {[%clk 0:03:02]} 8. Be2 {[%clk 0:03:01]}  O-O {[%clk 0:02:59]} 9. Rb1 {[%clk 0:03:01]}  cxd4 {[%clk 0:02:58]} 10. cxd4 {[%clk 0:03:02]}  Qa5+ {[%clk 0:02:59]} 11. Bd2 {[%clk 0:03:02]}  Qxa2 {[%clk 0:02:59]} 12. O-O {[%clk 0:03:02]}  Qe6 {[%clk 0:02:59]} 13. Qc2 {[%clk 0:02:31]}  Qd6 {[%clk 0:02:56]} 14. Bb4 {[%clk 0:02:20]}  Qd8 {[%clk 0:02:55]} 15. d5 {[%clk 0:02:17]}  a5 {[%clk 0:02:53]} 16. Ba3 {[%clk 0:02:04]}  Na6 {[%clk 0:02:53]} 17. Rfc1 {[%clk 0:00:56]}  Nb4 {[%clk 0:02:50]} 18. Bxb4 {[%clk 0:00:55]}  axb4 {[%clk 0:02:51]} 19. Rxb4 {[%clk 0:00:56]}  Qd6 {[%clk 0:02:37]} 20. Rc4 {[%clk 0:00:49]}  Bd7 {[%clk 0:02:34]} 21. h3 {[%clk 0:00:47]}  f5 {[%clk 0:01:56]} 22. Rc7 {[%clk 0:00:33]}  fxe4 {[%clk 0:01:30]} 23. Qxe4 {[%clk 0:00:34]}  b5 {[%clk 0:01:08]} 24. Nd4 {[%clk 0:00:26]}  Rf4 {[%clk 0:01:06]} 25. Nxb5 {[%clk 0:00:17]}  Bxb5 {[%clk 0:00:54]} 26. Rc8+ {[%clk 0:00:17]}  Rxc8 {[%clk 0:00:44]} 27. Rxc8+ {[%clk 0:00:18]}  Bf8 {[%clk 0:00:44]} 28. Qe3 {[%clk 0:00:10]}  Bxe2 {[%clk 0:00:44]} 29. Qxe2 {[%clk 0:00:11]}  Kg7 {[%clk 0:00:39]} 30. Qb2+ {[%clk 0:00:11]}  Qf6 {[%clk 0:00:37]} 31. Qc1 {[%clk 0:00:10]}  Rxf2 {[%clk 0:00:36]} 32. d6 {[%clk 0:00:09]}  exd6 {[%clk 0:00:28]} 33. Qc7+ {[%clk 0:00:09]}  Be7 {[%clk 0:00:19]} 34. Qc4 {[%clk 0:00:08]}  Rf4 {[%clk 0:00:16]} 35. Rg8+ {[%clk 0:00:06]}  Kh6 {[%clk 0:00:16]} 36. Qc1 {[%clk 0:00:06]}  g5 {[%clk 0:00:14]} 37. Qe1 {[%clk 0:00:04]}  Qe5 {[%clk 0:00:12]} 38. Qd1 {[%clk 0:00:03]}  Qd4+ {[%clk 0:00:11]} 0-1


[Site "https://www.chess.com"]

[Event "Titled Tuesday Blitz May 2 Early 2023"]
[White "Sammed Jaykumar, Shete"]
[Black "Suyarov, Mukhammadzokhid"]
[WhiteFideId "5073421"]
[BlackFideId "14210495"]
[WhiteElo "2278"]
[BlackElo "2361"]
[Result "1-0"]
[Round "06"]
[TimeControl "180+2"]
[Date "2023.05.02"]
[WhiteClock "0:00:00"]
[BlackClock "0:00:00"]

1. e4 {[%clk 0:00:01]}  e6 {[%clk 0:00:01]} 2. d4 {[%clk 0:00:01]}  d5 {[%clk 0:00:01]} 3. Nd2 {[%clk 0:00:01]}  h6 {[%clk 0:00:01]} 4. Ngf3 {[%clk 0:00:01]}  Nf6 {[%clk 0:00:01]} 5. Bd3 {[%clk 0:00:01]}  c5 {[%clk 0:00:01]} 6. e5 {[%clk 0:00:01]}  Nfd7 {[%clk 0:00:01]} 7. c3 {[%clk 0:00:01]}  Nc6 {[%clk 0:00:01]} 8. O-O {[%clk 0:00:01]}  g5 {[%clk 0:00:01]} 9. h3 {[%clk 0:00:01]}  h5 {[%clk 0:00:01]} 10. g4 {[%clk 0:00:01]}  hxg4 {[%clk 0:00:01]} 11. hxg4 {[%clk 0:00:01]}  Qb6 {[%clk 0:00:01]} 12. Re1 {[%clk 0:00:01]}  cxd4 {[%clk 0:00:01]} 13. Nb3 {[%clk 0:00:01]}  dxc3 {[%clk 0:00:01]} 14. bxc3 {[%clk 0:00:01]}  Be7 {[%clk 0:00:01]} 15. Nbd4 {[%clk 0:00:01]}  Qc7 {[%clk 0:00:01]} 16. Qe2 {[%clk 0:00:01]}  a6 {[%clk 0:00:01]} 17. Kg2 {[%clk 0:00:00]}  b6 {[%clk 0:00:01]} 18. Bxg5 {[%clk 0:00:00]}  Bxg5 {[%clk 0:00:01]} 19. Nxg5 {[%clk 0:00:00]}  Ndxe5 {[%clk 0:00:01]} 20. Rh1 {[%clk 0:00:00]}  Rg8 {[%clk 0:00:01]} 21. Nxc6 {[%clk 0:00:00]}  Nxc6 {[%clk 0:00:01]} 22. Rh5 {[%clk 0:00:00]}  Bb7 {[%clk 0:00:01]} 23. Nxe6 {[%clk 0:00:00]}  fxe6 {[%clk 0:00:01]} 24. Qxe6+ {[%clk 0:00:00]}  Ne7 {[%clk 0:00:01]} 25. Re1 {[%clk 0:00:00]}  Rf8 {[%clk 0:00:01]} 26. Rh7 {[%clk 0:00:00]}  Kd8 {[%clk 0:00:00]} 27. Rxe7 {[%clk 0:00:00]}  Rxf2+ {[%clk 0:00:00]} 28. Kxf2 {[%clk 0:00:00]}  Qh2+ {[%clk 0:00:00]} 29. Ke3 {[%clk 0:00:00]}  d4+ {[%clk 0:00:00]} 30. cxd4 {[%clk 0:00:00]}  Bc6 {[%clk 0:00:00]} 31. Qxc6 {[%clk 0:00:00]}  Kxe7 {[%clk 0:00:00]} 32. Qxa8 {[%clk 0:00:00]}  Kd6 {[%clk 0:00:00]} 33. Qe4 {[%clk 0:00:00]}  Qg3+ {[%clk 0:00:00]} 34. Kd2 {[%clk 0:00:00]}  Qh2+ {[%clk 0:00:00]} 35. Re2 {[%clk 0:00:00]}  Qh6+ {[%clk 0:00:00]} 36. Qe3 {[%clk 0:00:00]}  Qh1 {[%clk 0:00:00]} 37. Qe7+ {[%clk 0:00:00]}  Kc6 {[%clk 0:00:00]} 38. Be4+ {[%clk 0:00:00]}  Kb5 {[%clk 0:00:00]} 39. Bxh1 {[%clk 0:00:00]}  Ka4 {[%clk 0:00:00]} 40. Kc3 {[%clk 0:00:00]}  a5 {[%clk 0:00:00]} 41. Bc6+ {[%clk 0:00:00]}  b5 {[%clk 0:00:00]} 42. Bxb5+ {[%clk 0:00:00]}  Kxb5 {[%clk 0:00:00]} 43. Qc5+ {[%clk 0:00:00]}  Ka4 {[%clk 0:00:00]} 44. Qc4+ {[%clk 0:00:00]}  Ka3 {[%clk 0:00:00]} 45. Qb3# {[%clk 0:00:00]} 1-0


[Site "https://www.chess.com"]

[Event "Titled Tuesday Blitz May 2 Early 2023"]
[White "Popilski, Gil"]
[Black "Acor, Corey"]
[WhiteFideId "2809060"]
[BlackFideId "2024861"]
[WhiteElo "2537"]
[BlackElo "2341"]
[Result "0-1"]
[Round "06"]
[TimeControl "180+2"]
[Date "2023.05.02"]
[WhiteClock "0:01:06"]
[BlackClock "0:00:44"]

1. e4 {[%clk 0:03:00]}  e5 {[%clk 0:02:59]} 2. Nf3 {[%clk 0:02:57]}  Nc6 {[%clk 0:03:00]} 3. Bb5 {[%clk 0:02:54]}  Nge7 {[%clk 0:02:59]} 4. Nc3 {[%clk 0:02:52]}  d6 {[%clk 0:02:59]} 5. d4 {[%clk 0:02:43]}  Bd7 {[%clk 0:02:59]} 6. Be3 {[%clk 0:02:40]}  Ng6 {[%clk 0:02:43]} 7. Bc4 {[%clk 0:02:24]}  Be7 {[%clk 0:02:35]} 8. Nd5 {[%clk 0:02:16]}  Bg4 {[%clk 0:02:00]} 9. c3 {[%clk 0:02:15]}  Nh4 {[%clk 0:01:43]} 10. Rg1 {[%clk 0:02:02]}  O-O {[%clk 0:01:32]} 11. h3 {[%clk 0:02:00]}  Nxf3+ {[%clk 0:01:10]} 12. gxf3 {[%clk 0:01:59]}  Bh5 {[%clk 0:01:11]} 13. Qd2 {[%clk 0:01:50]}  Kh8 {[%clk 0:01:11]} 14. f4 {[%clk 0:01:34]}  f5 {[%clk 0:01:07]} 15. fxe5 {[%clk 0:01:27]}  dxe5 {[%clk 0:01:08]} 16. Rg5 {[%clk 0:01:20]}  Bxg5 {[%clk 0:01:05]} 17. Bxg5 {[%clk 0:01:19]}  Qd7 {[%clk 0:01:03]} 18. f4 {[%clk 0:01:13]}  fxe4 {[%clk 0:00:51]} 19. dxe5 {[%clk 0:01:12]}  Qxh3 {[%clk 0:00:45]} 20. Kf2 {[%clk 0:01:06]}  Nxe5 {[%clk 0:00:44]} 0-1


[Site "https://www.chess.com"]

[Event "Titled Tuesday Blitz May 2 Early 2023"]
[White "Kravtsiv, Martyn"]
[Black "Novik, Maxim"]
[WhiteFideId "14113147"]
[BlackFideId "4102924"]
[WhiteElo "2695"]
[BlackElo "2287"]
[Result "1-0"]
[Round "06"]
[TimeControl "180+2"]
[Date "2023.05.02"]
[WhiteClock "0:00:21"]
[BlackClock "0:00:01"]

1. e4 {[%clk 0:03:00]}  c6 {[%clk 0:02:58]} 2. Nf3 {[%clk 0:03:00]}  d5 {[%clk 0:02:58]} 3. d3 {[%clk 0:03:00]}  Nd7 {[%clk 0:02:53]} 4. Nc3 {[%clk 0:02:51]}  Ngf6 {[%clk 0:02:45]} 5. e5 {[%clk 0:02:48]}  Ng8 {[%clk 0:02:41]} 6. d4 {[%clk 0:02:46]}  e6 {[%clk 0:02:41]} 7. Bd3 {[%clk 0:02:39]}  c5 {[%clk 0:02:39]} 8. O-O {[%clk 0:02:38]}  Ne7 {[%clk 0:02:38]} 9. Nb5 {[%clk 0:02:32]}  Nc6 {[%clk 0:02:37]} 10. c3 {[%clk 0:02:17]}  a6 {[%clk 0:02:34]} 11. Nd6+ {[%clk 0:02:16]}  Bxd6 {[%clk 0:02:34]} 12. exd6 {[%clk 0:02:17]}  cxd4 {[%clk 0:02:10]} 13. cxd4 {[%clk 0:02:18]}  Nf6 {[%clk 0:02:10]} 14. Bf4 {[%clk 0:02:18]}  Ne4 {[%clk 0:02:04]} 15. Bxe4 {[%clk 0:02:11]}  dxe4 {[%clk 0:02:03]} 16. Ng5 {[%clk 0:02:12]}  O-O {[%clk 0:01:50]} 17. Nxe4 {[%clk 0:02:09]}  Nb4 {[%clk 0:01:49]} 18. Bg3 {[%clk 0:02:02]}  Bd7 {[%clk 0:01:48]} 19. Nc3 {[%clk 0:01:45]}  Bc6 {[%clk 0:01:46]} 20. Rc1 {[%clk 0:01:45]}  Rc8 {[%clk 0:01:42]} 21. Qd2 {[%clk 0:01:44]}  Qd7 {[%clk 0:01:36]} 22. a3 {[%clk 0:01:43]}  Nd5 {[%clk 0:01:36]} 23. Nxd5 {[%clk 0:01:43]}  Bxd5 {[%clk 0:01:36]} 24. Rc7 {[%clk 0:01:42]}  Rxc7 {[%clk 0:01:36]} 25. dxc7 {[%clk 0:01:43]}  Rc8 {[%clk 0:01:32]} 26. Rc1 {[%clk 0:01:43]}  f6 {[%clk 0:01:31]} 27. h3 {[%clk 0:01:42]}  Kf7 {[%clk 0:01:31]} 28. Qd1 {[%clk 0:01:37]}  Bc6 {[%clk 0:01:24]} 29. Rc5 {[%clk 0:01:36]}  Kg8 {[%clk 0:01:11]} 30. Qg4 {[%clk 0:01:34]}  Kf7 {[%clk 0:00:57]} 31. Kh2 {[%clk 0:01:33]}  Bd5 {[%clk 0:00:47]} 32. b4 {[%clk 0:01:27]}  Kg8 {[%clk 0:00:42]} 33. a4 {[%clk 0:01:25]}  b6 {[%clk 0:00:37]} 34. Rc3 {[%clk 0:01:11]}  Qxa4 {[%clk 0:00:37]} 35. Bd6 {[%clk 0:01:10]}  Qd7 {[%clk 0:00:34]} 36. Qf4 {[%clk 0:01:09]}  a5 {[%clk 0:00:26]} 37. bxa5 {[%clk 0:01:07]}  bxa5 {[%clk 0:00:26]} 38. Rg3 {[%clk 0:01:07]}  Kf7 {[%clk 0:00:23]} 39. Be5 {[%clk 0:01:03]}  Qe7 {[%clk 0:00:20]} 40. Qh4 {[%clk 0:00:48]}  h6 {[%clk 0:00:12]} 41. Bf4 {[%clk 0:00:39]}  a4 {[%clk 0:00:12]} 42. Qh5+ {[%clk 0:00:38]}  Kf8 {[%clk 0:00:11]} 43. Bxh6 {[%clk 0:00:28]}  gxh6 {[%clk 0:00:11]} 44. Qxh6+ {[%clk 0:00:28]}  Ke8 {[%clk 0:00:11]} 45. Rg8+ {[%clk 0:00:27]}  Kd7 {[%clk 0:00:11]} 46. Rg7 {[%clk 0:00:28]}  Rxc7 {[%clk 0:00:10]} 47. Rxe7+ {[%clk 0:00:28]}  Kxe7 {[%clk 0:00:10]} 48. Qg7+ {[%clk 0:00:29]}  Kd6 {[%clk 0:00:09]} 49. Qxf6 {[%clk 0:00:29]}  Ra7 {[%clk 0:00:07]} 50. Qd8+ {[%clk 0:00:27]}  Kc6 {[%clk 0:00:07]} 51. Qc8+ {[%clk 0:00:27]}  Kb6 {[%clk 0:00:07]} 52. Qb8+ {[%clk 0:00:28]}  Ka6 {[%clk 0:00:04]} 53. Qb4 {[%clk 0:00:25]}  Bb3 {[%clk 0:00:02]} 54. h4 {[%clk 0:00:25]}  Rb7 {[%clk 0:00:03]} 55. Qa3 {[%clk 0:00:24]}  Ka5 {[%clk 0:00:03]} 56. h5 {[%clk 0:00:23]}  Bd5 {[%clk 0:00:03]} 57. h6 {[%clk 0:00:23]}  Rh7 {[%clk 0:00:03]} 58. Qc5+ {[%clk 0:00:22]}  Ka6 {[%clk 0:00:03]} 59. Qf8 {[%clk 0:00:23]}  a3 {[%clk 0:00:02]} 60. Qxa3+ {[%clk 0:00:22]}  Kb5 {[%clk 0:00:02]} 61. Qf8 {[%clk 0:00:22]}  Kc4 {[%clk 0:00:01]} 62. g4 {[%clk 0:00:22]}  Kxd4 {[%clk 0:00:01]} 63. g5 {[%clk 0:00:22]}  Rb7 {[%clk 0:00:01]} 64. Qf4+ {[%clk 0:00:22]}  Be4 {[%clk 0:00:01]} 65. f3 {[%clk 0:00:21]} 1-0


[Site "https://www.chess.com"]

[Event "Titled Tuesday Blitz May 2 Early 2023"]
[White "Nguyen, Ngoc Truong Son"]
[Black "Postny, Evgeny"]
[WhiteFideId "12401110"]
[BlackFideId "2804344"]
[WhiteElo "2556"]
[BlackElo "2504"]
[Result "1-0"]
[Round "06"]
[TimeControl "180+2"]
[Date "2023.05.02"]
[WhiteClock "0:00:17"]
[BlackClock "0:00:01"]

1. b3 {[%clk 0:02:57]}  d5 {[%clk 0:02:59]} 2. Bb2 {[%clk 0:02:57]}  Nf6 {[%clk 0:03:00]} 3. e3 {[%clk 0:02:56]}  c5 {[%clk 0:02:59]} 4. Nf3 {[%clk 0:02:53]}  Nc6 {[%clk 0:02:59]} 5. Bb5 {[%clk 0:02:51]}  Bd7 {[%clk 0:02:59]} 6. Bxc6 {[%clk 0:02:50]}  Bxc6 {[%clk 0:02:58]} 7. Ne5 {[%clk 0:02:50]}  Rc8 {[%clk 0:02:59]} 8. O-O {[%clk 0:02:47]}  g6 {[%clk 0:02:57]} 9. d4 {[%clk 0:02:45]}  cxd4 {[%clk 0:02:56]} 10. Bxd4 {[%clk 0:02:44]}  Bg7 {[%clk 0:02:53]} 11. Nd2 {[%clk 0:02:33]}  O-O {[%clk 0:02:51]} 12. c4 {[%clk 0:02:24]}  b6 {[%clk 0:02:49]} 13. Nxc6 {[%clk 0:02:21]}  Rxc6 {[%clk 0:02:50]} 14. Rc1 {[%clk 0:02:21]}  Qc8 {[%clk 0:02:36]} 15. Bxf6 {[%clk 0:02:17]}  Bxf6 {[%clk 0:02:26]} 16. cxd5 {[%clk 0:02:16]}  Rxc1 {[%clk 0:02:25]} 17. Qxc1 {[%clk 0:02:17]}  Qxc1 {[%clk 0:02:16]} 18. Rxc1 {[%clk 0:02:17]}  Rd8 {[%clk 0:02:17]} 19. e4 {[%clk 0:02:04]}  e6 {[%clk 0:02:17]} 20. Rc6 {[%clk 0:02:03]}  Be7 {[%clk 0:01:11]} 21. Rc7 {[%clk 0:01:58]}  Bb4 {[%clk 0:01:02]} 22. Nf1 {[%clk 0:01:57]}  exd5 {[%clk 0:01:02]} 23. exd5 {[%clk 0:01:58]}  Rxd5 {[%clk 0:00:44]} 24. Rxa7 {[%clk 0:01:54]}  Rd1 {[%clk 0:00:43]} 25. Ra8+ {[%clk 0:01:45]}  Kg7 {[%clk 0:00:42]} 26. Re8 {[%clk 0:01:45]}  Bc5 {[%clk 0:00:36]} 27. Re2 {[%clk 0:01:45]}  f5 {[%clk 0:00:35]} 28. g3 {[%clk 0:01:45]}  Kf6 {[%clk 0:00:31]} 29. Kg2 {[%clk 0:01:45]}  Ra1 {[%clk 0:00:29]} 30. Nd2 {[%clk 0:01:44]}  g5 {[%clk 0:00:22]} 31. Nc4 {[%clk 0:01:40]}  g4 {[%clk 0:00:20]} 32. Ne5 {[%clk 0:01:28]}  Rd1 {[%clk 0:00:17]} 33. Nc4 {[%clk 0:01:13]}  h5 {[%clk 0:00:17]} 34. h3 {[%clk 0:01:09]}  Rc1 {[%clk 0:00:08]} 35. hxg4 {[%clk 0:01:04]}  hxg4 {[%clk 0:00:09]} 36. Nb2 {[%clk 0:00:52]}  Rb1 {[%clk 0:00:08]} 37. Nd3 {[%clk 0:00:47]}  Bd4 {[%clk 0:00:08]} 38. Nf4 {[%clk 0:00:46]}  Rd1 {[%clk 0:00:08]} 39. Re6+ {[%clk 0:00:45]}  Kf7 {[%clk 0:00:08]} 40. Rd6 {[%clk 0:00:45]}  Rd2 {[%clk 0:00:08]} 41. Ne2 {[%clk 0:00:25]}  Rxe2 {[%clk 0:00:09]} 42. Rxd4 {[%clk 0:00:26]}  Rxa2 {[%clk 0:00:09]} 43. Rd7+ {[%clk 0:00:25]}  Ke6 {[%clk 0:00:08]} 44. Rb7 {[%clk 0:00:25]}  Ra6 {[%clk 0:00:09]} 45. b4 {[%clk 0:00:25]}  Ke5 {[%clk 0:00:08]} 46. b5 {[%clk 0:00:26]}  Ra1 {[%clk 0:00:08]} 47. Rxb6 {[%clk 0:00:26]}  Rb1 {[%clk 0:00:09]} 48. Rb8 {[%clk 0:00:26]}  Kf6 {[%clk 0:00:09]} 49. b6 {[%clk 0:00:21]}  Kg7 {[%clk 0:00:08]} 50. b7 {[%clk 0:00:22]}  Kh7 {[%clk 0:00:08]} 51. Rf8 {[%clk 0:00:21]}  Rxb7 {[%clk 0:00:07]} 52. Rxf5 {[%clk 0:00:22]}  Kg6 {[%clk 0:00:08]} 53. Rc5 {[%clk 0:00:21]}  Rb3 {[%clk 0:00:05]} 54. Kf1 {[%clk 0:00:21]}  Rb2 {[%clk 0:00:04]} 55. Rd5 {[%clk 0:00:20]}  Kf6 {[%clk 0:00:04]} 56. Ke1 {[%clk 0:00:21]}  Kg6 {[%clk 0:00:05]} 57. Rd2 {[%clk 0:00:21]}  Rb3 {[%clk 0:00:05]} 58. Ke2 {[%clk 0:00:21]}  Kf5 {[%clk 0:00:05]} 59. Rd3 {[%clk 0:00:21]}  Rb1 {[%clk 0:00:05]} 60. Rd5+ {[%clk 0:00:21]}  Kf6 {[%clk 0:00:05]} 61. Ke3 {[%clk 0:00:21]}  Rb2 {[%clk 0:00:05]} 62. Rd2 {[%clk 0:00:17]}  Rb4 {[%clk 0:00:05]} 63. Rd4 {[%clk 0:00:17]}  Rb3+ {[%clk 0:00:05]} 64. Kf4 {[%clk 0:00:15]}  Rb2 {[%clk 0:00:04]} 65. Kxg4 {[%clk 0:00:16]}  Re2 {[%clk 0:00:01]} 66. Rf4+ {[%clk 0:00:17]} 1-0


[Site "https://www.chess.com"]

[Event "Titled Tuesday Blitz May 2 Early 2023"]
[White "Ibarra Jerez, Jose Carlos"]
[Black "Martinez Ramirez, Lennis"]
[WhiteFideId "2226332"]
[BlackFideId "3509079"]
[WhiteElo "2638"]
[BlackElo "2410"]
[Result "1-0"]
[Round "06"]
[TimeControl "180+2"]
[Date "2023.05.02"]
[WhiteClock "0:00:04"]
[BlackClock "0:00:06"]

1. e4 {[%clk 0:03:00]}  c5 {[%clk 0:02:59]} 2. Nf3 {[%clk 0:03:00]}  Nc6 {[%clk 0:03:00]} 3. Nc3 {[%clk 0:02:58]}  e5 {[%clk 0:02:58]} 4. Bc4 {[%clk 0:02:57]}  Be7 {[%clk 0:02:58]} 5. d3 {[%clk 0:02:57]}  d6 {[%clk 0:02:58]} 6. O-O {[%clk 0:02:57]}  h6 {[%clk 0:02:29]} 7. a3 {[%clk 0:02:25]}  Be6 {[%clk 0:02:28]} 8. Nd5 {[%clk 0:02:25]}  Nf6 {[%clk 0:02:24]} 9. c3 {[%clk 0:02:22]}  O-O {[%clk 0:02:22]} 10. b4 {[%clk 0:02:21]}  b6 {[%clk 0:02:18]} 11. Qa4 {[%clk 0:02:17]}  Rc8 {[%clk 0:01:22]} 12. Qb3 {[%clk 0:02:08]}  Bxd5 {[%clk 0:01:12]} 13. Bxd5 {[%clk 0:02:08]}  Nxd5 {[%clk 0:01:07]} 14. Qxd5 {[%clk 0:02:02]}  Qc7 {[%clk 0:00:56]} 15. b5 {[%clk 0:01:57]}  Nd8 {[%clk 0:00:52]} 16. Be3 {[%clk 0:01:54]}  Qb7 {[%clk 0:00:45]} 17. Qc4 {[%clk 0:01:48]}  Ne6 {[%clk 0:00:43]} 18. g3 {[%clk 0:01:39]}  Rfd8 {[%clk 0:00:42]} 19. Qd5 {[%clk 0:01:30]}  Qxd5 {[%clk 0:00:37]} 20. exd5 {[%clk 0:01:31]}  Nc7 {[%clk 0:00:36]} 21. c4 {[%clk 0:01:32]}  a6 {[%clk 0:00:36]} 22. a4 {[%clk 0:01:30]}  axb5 {[%clk 0:00:34]} 23. axb5 {[%clk 0:01:30]}  Ra8 {[%clk 0:00:34]} 24. Nd2 {[%clk 0:01:27]}  Rxa1 {[%clk 0:00:32]} 25. Rxa1 {[%clk 0:01:27]}  Ra8 {[%clk 0:00:32]} 26. Rxa8+ {[%clk 0:01:22]}  Nxa8 {[%clk 0:00:33]} 27. g4 {[%clk 0:01:21]}  Nc7 {[%clk 0:00:30]} 28. Ne4 {[%clk 0:01:16]}  Kh7 {[%clk 0:00:30]} 29. f4 {[%clk 0:01:16]}  f6 {[%clk 0:00:23]} 30. Kg2 {[%clk 0:01:12]}  Ne8 {[%clk 0:00:19]} 31. Kf3 {[%clk 0:01:11]}  g6 {[%clk 0:00:19]} 32. h3 {[%clk 0:01:01]}  Kg7 {[%clk 0:00:19]} 33. Ng3 {[%clk 0:01:01]}  Kh7 {[%clk 0:00:18]} 34. Ke4 {[%clk 0:01:00]}  Kg7 {[%clk 0:00:18]} 35. h4 {[%clk 0:00:58]}  Kh7 {[%clk 0:00:18]} 36. h5 {[%clk 0:00:58]}  g5 {[%clk 0:00:16]} 37. fxe5 {[%clk 0:00:53]}  fxe5 {[%clk 0:00:16]} 38. Nf5 {[%clk 0:00:49]}  Bf8 {[%clk 0:00:16]} 39. Kf3 {[%clk 0:00:49]}  Kg8 {[%clk 0:00:16]} 40. Bf2 {[%clk 0:00:45]}  Kf7 {[%clk 0:00:16]} 41. Bg3 {[%clk 0:00:45]}  Kf6 {[%clk 0:00:15]} 42. Ne3 {[%clk 0:00:41]}  Nc7 {[%clk 0:00:15]} 43. Nd1 {[%clk 0:00:41]}  Ne8 {[%clk 0:00:15]} 44. Nc3 {[%clk 0:00:41]}  Nc7 {[%clk 0:00:15]} 45. Bf2 {[%clk 0:00:41]}  Kf7 {[%clk 0:00:15]} 46. Bg3 {[%clk 0:00:42]}  Kf6 {[%clk 0:00:14]} 47. Bh2 {[%clk 0:00:43]}  Kf7 {[%clk 0:00:15]} 48. Ke3 {[%clk 0:00:42]}  Ne8 {[%clk 0:00:15]} 49. Na4 {[%clk 0:00:42]}  Nf6 {[%clk 0:00:14]} 50. Kf3 {[%clk 0:00:16]}  Nd7 {[%clk 0:00:14]} 51. Bg3 {[%clk 0:00:16]}  Be7 {[%clk 0:00:15]} 52. Bf2 {[%clk 0:00:17]}  Bf8 {[%clk 0:00:15]} 53. Nc3 {[%clk 0:00:17]}  Ke8 {[%clk 0:00:15]} 54. Be3 {[%clk 0:00:18]}  Kf7 {[%clk 0:00:14]} 55. Ne4 {[%clk 0:00:18]}  Be7 {[%clk 0:00:14]} 56. Bd2 {[%clk 0:00:18]}  Ke8 {[%clk 0:00:14]} 57. Bc1 {[%clk 0:00:18]}  Kf7 {[%clk 0:00:14]} 58. Ng3 {[%clk 0:00:19]}  Bf8 {[%clk 0:00:14]} 59. Ke4 {[%clk 0:00:19]}  Kf6 {[%clk 0:00:13]} 60. Nf5 {[%clk 0:00:18]}  Nb8 {[%clk 0:00:12]} 61. d4 {[%clk 0:00:14]}  exd4 {[%clk 0:00:11]} 62. Bd2 {[%clk 0:00:15]}  Nd7 {[%clk 0:00:11]} 63. Be1 {[%clk 0:00:12]}  Ne5 {[%clk 0:00:11]} 64. Bg3 {[%clk 0:00:13]}  Nxc4 {[%clk 0:00:12]} 65. Bh2 {[%clk 0:00:10]}  Kf7 {[%clk 0:00:11]} 66. Bg3 {[%clk 0:00:09]}  Ke8 {[%clk 0:00:10]} 67. Bh2 {[%clk 0:00:09]}  Kd7 {[%clk 0:00:11]} 68. Ng3 {[%clk 0:00:08]}  Ne5 {[%clk 0:00:09]} 69. Kf5 {[%clk 0:00:08]}  d3 {[%clk 0:00:10]} 70. Ne4 {[%clk 0:00:09]}  c4 {[%clk 0:00:10]} 71. Bg1 {[%clk 0:00:08]}  c3 {[%clk 0:00:10]} 72. Nxc3 {[%clk 0:00:07]}  d2 {[%clk 0:00:10]} 73. Be3 {[%clk 0:00:07]}  Nc4 {[%clk 0:00:10]} 74. Bd4 {[%clk 0:00:06]}  Ke7 {[%clk 0:00:07]} 75. Kg6 {[%clk 0:00:05]}  Kd7 {[%clk 0:00:08]} 76. Nd1 {[%clk 0:00:05]}  Kc7 {[%clk 0:00:08]} 77. Kf7 {[%clk 0:00:05]}  Ne5+ {[%clk 0:00:05]} 78. Bxe5 {[%clk 0:00:05]}  dxe5 {[%clk 0:00:06]} 79. Kxf8 {[%clk 0:00:05]}  e4 {[%clk 0:00:06]} 80. Ke7 {[%clk 0:00:04]} 1-0


[Site "https://www.chess.com"]